fUST/lending_fUST_20251025
["ID","MTS","AMOUNT","RATE_DAILY","PERIOD"]
[392315104,1761330632573,-200.0,0.00018756,2]
[392315106,1761330632583,-344.85580873,0.00018757,2]
[392315108,1761330632592,-727.3036541,0.00018757,2]
[392315110,1761330632602,-6458.2790175,0.00018757,2]
[392315112,1761330632611,-279.77522033,0.00018758,2]
[392315113,1761330632620,-500.0,0.00018759,2]
[392315114,1761330632635,-500.0,0.00018759,2]
[392315115,1761330632644,-335.71982481,0.00018759,2]
[392315116,1761330632654,-500.0,0.00018759,2]
[392315118,1761330632664,-371.17763406,0.00018759,2]
[392315120,1761330632675,-500.0,0.00018759,2]
[392315122,1761330632684,-479.70192605,0.00018759,2]
[392315125,1761330632693,-500.0,0.00018759,2]
[392315127,1761330632702,-500.0,0.00018759,2]
[392315129,1761330632711,-500.0,0.00018759,2]
[392315132,1761330632720,-497.3588361,0.00018759,2]
[392315135,1761330632729,-500.0,0.00018759,2]
[392315138,1761330632738,-500.0,0.00018759,2]
[392315141,1761330632747,-500.0,0.00018759,2]
[392315143,1761330632756,-500.0,0.00018759,2]
[392315146,1761330632765,-500.0,0.00018759,2]
[392315149,1761330632774,-500.0,0.00018759,2]
[392315178,1761330632986,-500.0,0.00018759,2]
[392315180,1761330632996,-500.0,0.00018759,2]
[392315182,1761330633006,-500.0,0.00018759,2]
[392315184,1761330633015,-424.6758413,0.00018759,2]
[392315186,1761330633025,-500.0,0.00018759,2]
[392315188,1761330633034,-500.0,0.00018759,2]
[392315190,1761330633043,-500.0,0.00018759,2]
[392315192,1761330633053,-500.0,0.00018759,2]
[392315194,1761330633063,-500.0,0.00018759,2]
[392315196,1761330633072,-1593.78,0.00018759,3]
[392315198,1761330633082,-796.89,0.00018759,3]
[392315200,1761330633091,-398.44,0.00018759,3]
[392315202,1761330633100,-199.22,0.00018759,3]
[392315204,1761330633112,-597.71,0.00018759,3]
[392315206,1761330633121,-336.9674542,0.00018759,2]
[392315208,1761330633131,-213.45380519,0.00018759,2]
[392315210,1761330633140,-48336.05420231,0.0001876,2]
[392315212,1761330633150,-500.0,0.00018761,2]
[392315214,1761330633159,-500.0,0.00018761,2]
[392315216,1761330633169,-500.0,0.00018761,2]
[392315218,1761330633178,-500.0,0.00018761,2]
[392315220,1761330633189,-500.0,0.00018761,2]
[392315222,1761330633198,-264.4546618,0.00018761,2]
[392315224,1761330633211,-72427.93522711,0.00018769,2]
[392315226,1761330633222,-5835.78732189,0.00018769,2]
[392315229,1761330633234,-1245.10276993,0.00018769,2]
[392315231,1761330633245,-1482.89054681,0.00018769,2]
[392315233,1761330633261,-704.25000015,0.00018769,2]
[392315240,1761330633315,-5778.08277635,0.00018769,2]
[392315242,1761330633327,-1316.38690709,0.00018769,2]
[392315245,1761330633339,-3827.25718664,0.00018769,2]
[392315406,1761330638357,-822.42279838,0.00018769,2]
[392315409,1761330638369,-471.54538709,0.00018769,2]
[392315411,1761330638380,-1049.11911392,0.00018769,2]
[392315413,1761330638391,-18286.69776887,0.00018769,2]
[392315416,1761330638414,-1815.33760659,0.00018769,2]
[392315499,1761330639416,150.0,0.00018535,30]
[392315500,1761330639815,150.0,0.00019417,30]
[392315502,1761330640673,-4551.15217874,0.00018769,2]
[392315515,1761330643549,0.01,0.000187,2]
[392315519,1761330643572,4999.99,0.000187,2]
[392315520,1761330645821,-250386.03241044,0.00018769,2]
[392315521,1761330645830,-500.0,0.0001877,2]
[392315522,1761330645839,-500.0,0.0001877,2]
[392315523,1761330645849,-500.0,0.0001877,2]
[392315524,1761330645858,-500.0,0.0001877,2]
[392315525,1761330645868,-500.0,0.0001877,2]
[392315526,1761330645878,-500.0,0.0001877,2]
[392315527,1761330645888,-484.3866748,0.00018772,2]
[392315528,1761330645898,-528.77638099,0.00018772,2]
[392315529,1761330645907,-500.0,0.00018772,2]
[392315530,1761330645918,-168.0,0.00018781,2]
[392315531,1761330645928,-168.0,0.00018865,2]
[392315532,1761330645937,-500.0,0.00018868,2]
[392315533,1761330645947,-500.0,0.00018868,2]
[392315534,1761330645956,-168.0,0.00018941,2]
[392315535,1761330645965,-719.17270243,0.0001896,2]
[392315537,1761330645975,-500.0,0.00019046,2]
[392315539,1761330645986,-150.0,0.00019106,2]
[392315540,1761330645996,-168.0,0.00019136,2]
[392315541,1761330646005,-457.88196129,0.00019173,2]
[392315542,1761330646015,-500.0,0.00019173,2]
[392315543,1761330646025,-502.29843691,0.00019173,2]
[392315544,1761330646034,-360.31113483,0.00019173,2]
[392315545,1761330646044,-500.0,0.00019173,2]
[392315546,1761330646055,-500.0,0.00019173,2]
[392315547,1761330646067,-500.0,0.00019173,2]
[392315548,1761330646077,-500.0,0.00019173,2]
[392315549,1761330646086,-500.0,0.00019173,2]
[392315550,1761330646095,-500.85750236,0.00019173,2]
[392315551,1761330646106,-500.0,0.00019173,2]
[392315552,1761330646115,-500.0,0.00019173,2]
[392315553,1761330646130,-500.29893777,0.00019173,2]
[392315554,1761330646140,-501.22472656,0.00019173,2]
[392315555,1761330646151,-500.0,0.00019173,2]
[392315556,1761330646161,-500.0,0.00019173,2]
[392315557,1761330646172,-500.0,0.00019173,2]
[392315558,1761330646182,-500.0,0.00019173,2]
[392315559,1761330646191,-500.0,0.00019173,2]
[392315560,1761330646202,-500.0,0.00019173,2]
[392315561,1761330646212,-183.62426972,0.00019173,2]
[392315562,1761330646222,-500.0,0.00019177,2]
[392315563,1761330646232,-500.0,0.00019177,2]
[392315564,1761330646242,-500.0,0.00019177,2]
[392315565,1761330646253,-500.0,0.00019177,2]
[392315566,1761330646264,-500.0,0.00019177,2]
[392315567,1761330646273,-500.0,0.00019177,2]
[392315568,1761330646282,-500.0,0.00019177,2]
[392315570,1761330646292,-500.0,0.00019177,2]
[392315571,1761330646301,-828.67778523,0.00019178,2]
[392315572,1761330646311,-828.67778523,0.00019178,2]
[392315573,1761330646320,-828.67778523,0.00019178,2]
[392315574,1761330646329,-828.67778523,0.00019178,2]
[392315575,1761330646338,-828.67778523,0.00019178,2]
[392315576,1761330646348,-828.67778523,0.00019178,2]
[392315577,1761330646358,-828.67778523,0.00019178,2]
[392315578,1761330646368,-828.67778523,0.00019178,2]
[392315579,1761330646379,-828.67778523,0.00019178,2]
[392315580,1761330646522,-828.67778523,0.00019178,2]
[392315581,1761330646555,-828.67778523,0.00019178,2]
[392315582,1761330646565,-828.67778523,0.00019178,2]
[392315583,1761330646575,-828.67778523,0.00019178,2]
[392315584,1761330646584,-828.67778523,0.00019178,2]
[392315585,1761330646594,-828.67778523,0.00019178,2]
[392315586,1761330646604,-828.67778523,0.00019178,2]
[392315587,1761330646614,-828.67778523,0.00019178,2]
[392315588,1761330646623,-828.67778523,0.00019178,2]
[392315589,1761330646633,-828.67778523,0.00019178,2]
[392315590,1761330646644,-828.67778523,0.00019178,2]
[392315591,1761330646654,-828.67778523,0.00019178,2]
[392315592,1761330646663,-828.67778523,0.00019178,2]
[392315593,1761330646673,-828.67778523,0.00019178,2]
[392315594,1761330646683,-828.67778523,0.00019178,2]
[392315595,1761330646693,-828.67778523,0.00019178,2]
[392315596,1761330646703,-828.67778523,0.00019178,2]
[392315597,1761330646712,-828.67778523,0.00019178,2]
[392315598,1761330646722,-828.67778523,0.00019178,2]
[392315599,1761330646731,-828.67778523,0.00019178,2]
[392315600,1761330646740,-828.67778523,0.00019178,2]
[392315601,1761330646749,-828.67778523,0.00019178,2]
[392315602,1761330646759,-828.67778523,0.00019178,2]
[392315603,1761330646769,-828.67778523,0.00019178,2]
[392315604,1761330646778,-828.67778523,0.00019178,2]
[392315605,1761330646788,-828.67778523,0.00019178,2]
[392315606,1761330646799,-828.67778523,0.00019178,2]
[392315607,1761330646809,-828.67778523,0.00019178,2]
[392315608,1761330646819,-828.67778523,0.00019178,2]
[392315609,1761330646829,-828.67778523,0.00019178,2]
[392315610,1761330646839,-828.67778523,0.00019178,2]
[392315611,1761330646850,-828.67778523,0.00019178,2]
[392315612,1761330646860,-828.67778523,0.00019178,2]
[392315613,1761330646870,-828.67778523,0.00019178,2]
[392315614,1761330646879,-828.67778523,0.00019178,2]
[392315615,1761330646889,-828.67778523,0.00019178,2]
[392315616,1761330646899,-828.67778523,0.00019178,2]
[392315617,1761330646908,-828.67778523,0.00019178,2]
[392315618,1761330646918,-828.67778523,0.00019178,2]
[392315619,1761330646927,-828.67778523,0.00019178,2]
[392315620,1761330646937,-828.67778523,0.00019178,2]
[392315621,1761330646947,-828.67778523,0.00019178,2]
[392315622,1761330646957,-828.67778523,0.00019178,2]
[392315623,1761330646966,-828.67778523,0.00019178,2]
[392315624,1761330646975,-828.67778523,0.00019178,2]
[392315625,1761330646985,-828.67778523,0.00019178,2]
[392315626,1761330646995,-828.67778523,0.00019178,2]
[392315627,1761330647004,-828.67778523,0.00019178,2]
[392315628,1761330647014,-828.67778523,0.00019178,2]
[392315629,1761330647023,-828.67778523,0.00019178,2]
[392315630,1761330647032,-828.67778523,0.00019178,2]
[392315631,1761330647043,-828.67778523,0.00019178,2]
[392315632,1761330647053,-828.67778523,0.00019178,2]
[392315633,1761330647063,-828.67778523,0.00019178,2]
[392315634,1761330647072,-828.67778523,0.00019178,2]
[392315635,1761330647081,-828.67778523,0.00019178,2]
[392315636,1761330647090,-828.67778523,0.00019178,2]
[392315637,1761330647100,-828.67778523,0.00019178,2]
[392315638,1761330647110,-813.61091641,0.00019178,2]
[392315639,1761330647121,-813.61091641,0.00019178,2]
[392315640,1761330647133,-813.61091641,0.00019178,2]
[392315641,1761330647143,-813.61091641,0.00019178,2]
[392315642,1761330647152,-813.61091641,0.00019178,2]
[392315643,1761330647163,-813.61091641,0.00019178,2]
[392315644,1761330647172,-813.61091641,0.00019178,2]
[392315645,1761330647183,-813.61091641,0.00019178,2]
[392315646,1761330647193,-813.61091641,0.00019178,2]
[392315647,1761330647207,-813.61091641,0.00019178,2]
[392315648,1761330647217,-813.61091641,0.00019178,2]
[392315649,1761330647227,-813.61091641,0.00019178,2]
[392315650,1761330647237,-813.61091641,0.00019178,2]
[392315651,1761330647246,-813.61091641,0.00019178,2]
[392315652,1761330647256,-813.61091641,0.00019178,2]
[392315653,1761330647265,-813.61091641,0.00019178,2]
[392315654,1761330647275,-813.61091641,0.00019178,2]
[392315655,1761330647284,-813.61091641,0.00019178,2]
[392315656,1761330647295,-813.61091641,0.00019178,2]
[392315657,1761330647305,-813.61091641,0.00019178,2]
[392315658,1761330647315,-813.61091641,0.00019178,2]
[392315659,1761330647324,-813.61091641,0.00019178,2]
[392315660,1761330647334,-976.83904954,0.00019178,2]
[392315661,1761330647344,-151.0,0.00019178,2]
[392315662,1761330647354,-214.369327,0.00019178,2]
[392315663,1761330647364,-499.07297,0.00019178,2]
[392315664,1761330647374,-499.07297,0.00019178,2]
[392315665,1761330647384,-499.07297,0.00019178,2]
[392315666,1761330647394,-499.07297,0.00019178,2]
[392315667,1761330647404,-151.0,0.00019178,2]
[392315668,1761330647414,-168.0,0.00019192,2]
[392315669,1761330647423,-719.17270243,0.00019249,2]
[392315670,1761330647432,-11100.87185573,0.00019285,2]
[392315671,1761330647442,-4652.0,0.00019315,2]
[392315672,1761330647452,-499.07297,0.00019315,7]
[392315673,1761330647461,-499.07297,0.00019315,7]
[392315674,1761330647471,-499.07297,0.00019315,7]
[392315675,1761330647480,-499.07297,0.00019315,7]
[392315676,1761330647489,-500.0,0.0001932,2]
[392315677,1761330647501,-500.0,0.00019377,2]
[392315678,1761330647510,-500.0,0.00019377,2]
[392315679,1761330647519,-294.282,0.00019403,2]
[392315680,1761330647529,-332.0,0.00019403,2]
[392315681,1761330647538,-203.49593716,0.00019453,2]
[392315682,1761330647549,-365.9263942,0.00019453,2]
[392315683,1761330647561,-223.11089604,0.00019453,2]
[392315684,1761330647571,-412.88485832,0.00019453,2]
[392315685,1761330647582,-471.86840951,0.00019453,2]
[392315686,1761330647592,-152.34411921,0.00019453,2]
[392315687,1761330647601,-274.21941459,0.00019453,2]
[392315688,1761330647610,-487.50118149,0.00019453,2]
[392315689,1761330647620,-719.17270243,0.00019537,2]
[392315690,1761330647629,-455.27,0.00019591,2]
[392315691,1761330647639,-500.0,0.00019594,2]
[392315692,1761330647649,-1000.0,0.00019721,2]
[392315693,1761330647658,-1000.0,0.00019721,2]
[392315694,1761330647670,-1000.0,0.00019721,2]
[392315695,1761330647680,-151.0,0.00019721,7]
[392315696,1761330647690,-168.0,0.00019764,2]
[392315697,1761330647698,-332.0,0.00019769,2]
[392315698,1761330647707,-719.17270243,0.00019826,2]
[392315699,1761330647716,-900.0,0.00019835,2]
[392315700,1761330647725,-500.0,0.00019868,2]
[392315701,1761330647733,-277.0,0.000199,2]
[392315702,1761330647742,-151.0,0.000199,7]
[392315703,1761330647751,-178.66670934,0.000199,2]
[392315704,1761330647759,-11100.87185573,0.000199,2]
[392315705,1761330647768,-332.0,0.00019926,2]
[392315706,1761330647777,-500.0,0.00019972,2]
[392315707,1761330647786,-500.0,0.00019972,2]
[392315708,1761330647795,-500.0,0.00019999,2]
[392315709,1761330647804,-500.0,0.00019999,2]
[392315710,1761330647812,-445.69691162,0.00019999,2]
[392315711,1761330647821,-500.0,0.00019999,2]
[392315712,1761330647830,-500.0,0.00019999,2]
[392315713,1761330647839,-311.46642737,0.00019999,2]
[392315714,1761330647848,-592.45189293,0.0002,2]
[392315715,1761330647857,-1825934.9834798,0.0002,2]
[392315716,1761330647866,-350.0694817,0.0002,2]
[392315717,1761330647875,-200.0,0.0002,2]
[392315718,1761330647884,-281.4,0.0002,2]
[392315719,1761330647893,-159.77469719,0.0002,2]
[392315720,1761330647902,-499.07297,0.0002,7]
[392315721,1761330647911,-499.07297,0.0002,7]
[392315722,1761330647920,-499.07297,0.0002,7]
[392315723,1761330647929,-499.07297,0.0002,7]
[392315724,1761330647938,-928.80725811,0.0002,2]
[392315725,1761330647947,-151.0,0.0002,7]
[392315726,1761330647955,-2000.0,0.0002,7]
[392315727,1761330647965,-4652.0,0.00020009,2]
[392315728,1761330647974,-150.0,0.00020015,2]
[392315729,1761330647983,-222.0,0.00020017,3]
[392315730,1761330647992,-255.0,0.00020021,2]
[392315731,1761330648001,-160.0,0.00020024,2]
[392315732,1761330648010,-168.0,0.00020027,2]
[392315733,1761330648019,-331.0,0.00020036,2]
[392315734,1761330648029,-161.95094999,0.00020055,2]
[392315735,1761330648038,-163.0,0.00020055,2]
[392315736,1761330648048,-162.22579818,0.00020055,2]
[392315737,1761330648058,-163.0,0.00020055,2]
[392315738,1761330648067,-3187.56,0.00020129,3]
[392315739,1761330648078,-1593.78,0.00020129,3]
[392315740,1761330648087,-796.88,0.00020129,3]
[392315741,1761330648097,-398.44,0.00020129,3]
[392315742,1761330648108,-500.0,0.00020142,2]
[392315743,1761330648120,-1031.981003,0.00020187,2]
[392315744,1761330648133,-1500.0,0.00020268,2]
[392315745,1761330648144,-983.0,0.00020344,2]
[392315746,1761330648154,-632.0,0.00020344,2]
[392315747,1761330648164,-2165.0,0.00020344,2]
[392315748,1761330648173,-411.0,0.00020344,2]
[392315749,1761330648183,-432.244,0.00020344,2]
[392315750,1761330648194,-300.0,0.00020399,2]
[392315751,1761330648203,-300.0,0.00020399,2]
[392315752,1761330648213,-300.0,0.00020399,2]
[392315753,1761330648223,-300.0,0.00020399,2]
[392315754,1761330648232,-300.0,0.00020399,2]
[392315755,1761330648242,-300.0,0.00020399,2]
[392315756,1761330648251,-300.0,0.00020399,2]
[392315757,1761330648260,-300.0,0.00020399,2]
[392315758,1761330648269,-300.0,0.00020399,2]
[392315759,1761330648278,-300.0,0.00020399,2]
[392315760,1761330648287,-300.0,0.00020399,2]
[392315761,1761330648297,-300.0,0.00020399,2]
[392315762,1761330648307,-300.0,0.00020399,2]
[392315763,1761330648316,-300.0,0.00020399,2]
[392315764,1761330648325,-300.0,0.00020399,2]
[392315765,1761330648335,-600.0,0.00020399,2]
[392315766,1761330648344,-500.0,0.00020416,2]
[392315767,1761330648354,-500.0,0.00020436,2]
[392315768,1761330648363,-500.0,0.00020436,2]
[392315769,1761330648372,-501.54793365,0.00020436,2]
[392315770,1761330648381,-420.0,0.00020449,2]
[392315771,1761330648391,-403.33096709,0.0002049,2]
[392315772,1761330648400,-160.0,0.0002049,2]
[392315773,1761330648409,-160.0,0.0002049,2]
[392315774,1761330648418,-160.0,0.0002049,2]
[392315775,1761330648427,-160.0,0.0002049,2]
[392315776,1761330648436,-177.4108125,0.000205,2]
[392315777,1761330648445,-1693.63696266,0.000205,2]
[392315778,1761330648455,-168.0,0.00020505,2]
[392315779,1761330648464,-150.0,0.00020516,2]
[392315780,1761330648473,-150.0,0.00020516,2]
[392315781,1761330648483,-187.147,0.00020516,2]
[392315782,1761330648492,-150.0,0.00020516,2]
[392315783,1761330648502,-160.554268,0.00020548,3]
[392315784,1761330648511,-260.0,0.00020572,2]
[392315785,1761330648521,-250.0,0.00020589,2]
[392315786,1761330648531,-200.0,0.00020602,9]
[392315787,1761330648541,-168.0,0.00020679,2]
[392315788,1761330648550,-500.0,0.0002069,2]
[392315789,1761330648559,-177.4108125,0.000207,2]
[392315790,1761330648568,-1693.63696266,0.000207,2]
[392315791,1761330648578,-150.0,0.000207,10]
[392315792,1761330648587,-406.9298543,0.00020757,2]
[392315793,1761330648596,-168.0,0.00020766,2]
[392315794,1761330648605,-267.20373282,0.00020816,2]
[392315795,1761330648615,-150.01,0.00020874,2]
[392315796,1761330648624,-177.4108125,0.000209,2]
[392315797,1761330648634,-1693.63696266,0.000209,2]
[392315798,1761330648643,-900.0,0.00020931,2]
[392315799,1761330648652,-382.96780742,0.00020964,2]
[392315800,1761330648661,-1000.0,0.00020984,2]
[392315801,1761330648670,-1000.0,0.00020984,2]
[392315802,1761330648680,-693.27704515,0.00021,10]
[392315803,1761330648690,-300.0,0.00021,2]
[392315804,1761330648701,-3000.0,0.00021,2]
[392315805,1761330648711,-274.36808995,0.00021,2]
[392315806,1761330648722,-3000.0,0.0002101,2]
[392315807,1761330648731,-5539.21544,0.0002102,2]
[392315808,1761330648741,-499.07297,0.0002102,7]
[392315809,1761330648750,-499.07297,0.0002102,7]
[392315810,1761330648761,-499.07297,0.0002102,7]
[392315811,1761330648770,-499.07297,0.0002102,7]
[392315812,1761330648781,-2000.0,0.00021053,7]
[392315813,1761330648791,-1693.63696266,0.000211,2]
[392315814,1761330648800,-360.0,0.0002112,2]
[392315815,1761330648810,-727.3036541,0.00021174,2]
[392315816,1761330648820,-157.72642,0.00021246,2]
[392315817,1761330648829,-1693.63696266,0.000213,2]
[392315818,1761330648839,-3030.44339862,0.00021342,2]
[392315819,1761330648848,-224.94850492,0.00021492,2]
[392315820,1761330648858,-1693.63696266,0.000215,2]
[392315821,1761330648867,-1000.0,0.00021532,2]
[392315822,1761330648877,-1500.0,0.00021532,2]
[392315823,1761330648890,-1341.178251,0.0002164,5]
[392315824,1761330648899,-1000.0,0.0002166,5]
[392315825,1761330648909,-460.0,0.00021668,2]
[392315826,1761330648919,-1000.0,0.0002168,5]
[392315827,1761330648929,-1000.0,0.000217,5]
[392315828,1761330648938,-150.0,0.00021739,2]
[392315829,1761330648949,-1693.63696266,0.000218,2]
[392315830,1761330648959,-500.0,0.00021917,2]
[392315831,1761330648968,-500.0,0.00021917,2]
[392315832,1761330648977,-500.0,0.00021917,2]
[392315833,1761330648986,-500.0,0.00021917,2]
[392315834,1761330648995,-500.0,0.00021917,2]
[392315835,1761330649004,-269.6213378,0.00021917,2]
[392315836,1761330649013,-153.0,0.00021918,2]
[392315837,1761330649023,-1484.0973516,0.00021918,7]
[392315838,1761330649033,-367.843748,0.00021918,7]
[392315839,1761330649042,-367.843748,0.00021918,7]
[392315840,1761330649051,-367.843748,0.00021918,7]
[392315841,1761330649061,-367.843748,0.00021918,7]
[392315842,1761330649070,-367.843748,0.00021918,7]
[392315843,1761330649080,-367.843748,0.00021918,7]
[392315844,1761330649088,-367.843748,0.00021918,7]
[392315845,1761330649097,-367.843748,0.00021918,7]
[392315846,1761330649106,-367.843748,0.00021918,7]
[392315847,1761330649116,-367.843748,0.00021918,7]
[392315848,1761330649128,-367.843748,0.00021918,7]
[392315849,1761330649137,-367.843748,0.00021918,7]
[392315850,1761330649146,-500.0,0.00021918,2]
[392315851,1761330649155,-152.0,0.00021918,2]
[392315852,1761330649165,-152.0,0.00021918,2]
[392315853,1761330649175,-152.0,0.00021918,2]
[392315854,1761330649184,-152.0,0.00021918,2]
[392315855,1761330649193,-175.33456728,0.00021918,2]
[392315856,1761330649203,-501.02104399,0.00021918,2]
[392315857,1761330649212,-152.0,0.00021918,2]
[392315858,1761330649223,-500.0,0.00021918,2]
[392315859,1761330649232,-500.0,0.00021918,2]
[392315860,1761330649242,-500.0,0.00021918,2]
[392315861,1761330649251,-500.0,0.00021918,2]
[392315862,1761330649261,-500.0,0.00021918,2]
[392315863,1761330649270,-500.0,0.00021918,2]
[392315864,1761330649280,-500.0,0.00021918,2]
[392315865,1761330649290,-500.0,0.00021918,2]
[392315866,1761330649300,-500.0,0.00021918,2]
[392315867,1761330649310,-500.0,0.00021918,2]
[392315868,1761330649320,-500.0,0.00021918,2]
[392315869,1761330649330,-500.0,0.00021918,2]
[392315870,1761330649340,-500.0,0.00021918,2]
[392315871,1761330649349,-500.0,0.00021918,2]
[392315872,1761330649359,-500.0,0.00021918,2]
[392315873,1761330649368,-500.0,0.00021918,2]
[392315874,1761330649378,-500.0,0.00021918,2]
[392315875,1761330649388,-500.0,0.00021918,2]
[392315876,1761330649397,-500.0,0.00021918,2]
[392315877,1761330649408,-500.0,0.00021918,2]
[392315878,1761330649418,-500.0,0.00021918,2]
[392315879,1761330649428,-500.0,0.00021918,2]
[392315880,1761330649438,-500.0,0.00021918,2]
[392315881,1761330649447,-500.0,0.00021918,2]
[392315882,1761330649458,-500.0,0.00021918,2]
[392315883,1761330649468,-500.0,0.00021918,2]
[392315884,1761330649479,-500.0,0.00021918,2]
[392315885,1761330649489,-500.0,0.00021918,2]
[392315886,1761330649498,-534.05280276,0.00021918,2]
[392315887,1761330649508,-500.0,0.00021918,2]
[392315888,1761330649518,-500.0,0.00021918,2]
[392315889,1761330649528,-500.0,0.00021918,2]
[392315890,1761330649537,-510.46882506,0.00022,5]
[392315891,1761330649546,-1693.63696266,0.00022,2]
[392315892,1761330649555,-26723.59,0.00022,7]
[392315893,1761330649564,-1487.47,0.00022,14]
[392315894,1761330649574,-499.07297,0.00022,7]
[392315895,1761330649583,-499.07297,0.00022,7]
[392315896,1761330649592,-499.07297,0.00022,7]
[392315897,1761330649601,-499.072966,0.00022,7]
[392315898,1761330649830,-367.843748,0.00022,7]
[392315899,1761330649841,-367.843748,0.00022,7]
[392315900,1761330649852,-367.843748,0.00022,7]
[392315901,1761330649862,-367.843748,0.00022,7]
[392315902,1761330649872,-900.0,0.00022027,2]
[392315903,1761330649882,-2000.0,0.0002208,2]
[392315904,1761330649893,-2000.0,0.00022105,7]
[392315905,1761330649903,-1693.63696266,0.000222,2]
[392315906,1761330649912,-560.0,0.00022216,2]
[392315907,1761330649922,-587.0,0.00022295,2]
[392315908,1761330649932,-1693.63696266,0.000224,2]
[392315909,1761330649941,-720.0,0.00022439,20]
[392315910,1761330649951,-201.0,0.000225,5]
[392315911,1761330649960,-1441.0368314,0.00022564,2]
[392315912,1761330649971,-1013.57043096,0.00022627,2]
[392315913,1761330649981,-150.0,0.00022644,2]
[392315914,1761330649992,-179.85611511,0.0002268,2]
[392315915,1761330650003,-469.00389987,0.00022757,2]
[392315916,1761330650012,-660.0,0.00022764,2]
[392315917,1761330650021,-157.72642,0.00022891,2]
[392315918,1761330650030,-900.0,0.00023123,2]
[392315919,1761330650039,-2000.0,0.00023158,7]
[392315920,1761330650051,-367.843748,0.00023158,7]
[392315921,1761330650061,-367.843748,0.00023158,7]
[392315922,1761330650071,-367.843748,0.00023158,7]
[392315923,1761330650081,-367.84375,0.00023158,7]
[392315924,1761330650091,-660.7072024,0.00023193,2]
[392315925,1761330650102,-504.12719214,0.00023287,2]
[392315926,1761330650111,-160.0,0.00023288,30]
[392315927,1761330650121,-403.33096709,0.00023288,30]
[392315928,1761330650134,-95000.0,0.00023288,30]
[392315929,1761330650143,-157.72642,0.00023291,30]
[392315930,1761330650154,-157.72642,0.00023294,30]
[392315931,1761330650164,-169.33012,0.00023297,30]
[392315932,1761330650175,-157.72642,0.00023297,30]
[392315933,1761330650185,-169.33012,0.000233,30]
[392315934,1761330650195,-157.72642,0.000233,30]
[392315935,1761330650207,-181.710241,0.000233,30]
[392315936,1761330650219,-194.793503,0.000233,30]
[392315937,1761330650228,-760.0,0.00023312,2]
[392315938,1761330650238,-983.0,0.00023344,2]
[392315939,1761330650247,-632.0,0.00023344,2]
[392315940,1761330650256,-2165.0,0.00023344,2]
[392315941,1761330650265,-411.0,0.00023344,2]
[392315942,1761330650275,-411.0,0.00023344,2]
[392315943,1761330650288,-321.5387789,0.00023414,2]
[392315944,1761330650298,-1000.0,0.000235,2]
[392315945,1761330650307,-26723.59,0.000235,7]
[392315946,1761330650317,-403.33096709,0.000235,7]
[392315947,1761330650328,-150.0,0.00023516,2]
[392315948,1761330650337,-178.41,0.0002355,2]
[392315949,1761330650347,-727.3036541,0.00023591,2]
[392315950,1761330650356,-3695.17567797,0.000237,14]
[392315951,1761330650366,-860.0,0.00023859,2]
[392315952,1761330650376,-3000.0,0.00024,2]
[392315953,1761330650388,-403.33096709,0.00024,30]
[392315954,1761330650399,-508.17,0.00024,2]
[392315955,1761330650411,-3030.44339862,0.00024016,2]
[392315956,1761330650421,-157.72642,0.00024025,7]
[392315957,1761330650431,-32263.09273327,0.00024142,2]
[392315958,1761330650443,-2000.0,0.00024211,7]
[392315959,1761330650454,-900.0,0.00024219,2]